[Event "Early-Titled-Tuesday-Blitz-November-28-2023"]
[Site "Chess.com"]
[Date "2023.11.28"]
[Round "2"]
[White "Ajedrez_con_German"]
[Black "Real_taiatai"]
[Result "1-0"]
[WhiteElo "2607"]
[BlackElo "2359"]
[TimeControl "180+1"]
[EndTime "8:16:53 PST"]
[Termination "Ajedrez_con_German won by resignation"]

1. e4 {[%clk 0:02:48.7]} 1... e5 {[%clk 0:02:59.9]} 2. Nc3 {[%clk 0:02:48.7]}
2... Nc6 {[%clk 0:03:00.3]} 3. f4 {[%clk 0:02:48.4]} 3... Nf6 {[%clk 0:02:54.9]}
4. Nf3 {[%clk 0:02:46.2]} 4... d5 {[%clk 0:02:55.1]} 5. exd5 {[%clk 0:02:42.2]}
5... Nxd5 {[%clk 0:02:54.5]} 6. fxe5 {[%clk 0:02:39.5]} 6... Bg4 {[%clk
0:02:47.5]} 7. Be2 {[%clk 0:02:34.7]} 7... Bxf3 {[%clk 0:02:21.5]} 8. Bxf3
{[%clk 0:02:33.4]} 8... Nxc3 {[%clk 0:02:21.7]} 9. bxc3 {[%clk 0:02:29.8]} 9...
Nxe5 {[%clk 0:02:17.7]} 10. Qe2 {[%clk 0:02:11.2]} 10... Qe7 {[%clk 0:02:12.6]}
11. Bxb7 {[%clk 0:02:05.8]} 11... Rb8 {[%clk 0:02:12.7]} 12. Bf3 {[%clk
0:01:51.7]} 12... Nxf3+ {[%clk 0:02:12]} 13. gxf3 {[%clk 0:01:51.4]} 13... Qxe2+
{[%clk 0:02:12.3]} 14. Kxe2 {[%clk 0:01:51.7]} 14... Kd7 {[%clk 0:02:12.7]} 15.
d4 {[%clk 0:01:48.6]} 15... Bd6 {[%clk 0:02:08.9]} 16. Kd3 {[%clk 0:01:45.3]}
16... g6 {[%clk 0:02:01.4]} 17. c4 {[%clk 0:01:44.9]} 17... c6 {[%clk
0:01:58.9]} 18. Bd2 {[%clk 0:01:34.7]} 18... Rhe8 {[%clk 0:01:55.6]} 19. c5
{[%clk 0:01:33.8]} 19... Bf8 {[%clk 0:01:53.2]} 20. Bf4 {[%clk 0:01:25.6]} 20...
Rb4 {[%clk 0:01:47.8]} 21. Rab1 {[%clk 0:01:22.5]} 21... Bxc5 {[%clk 0:01:39.8]}
22. Rxb4 {[%clk 0:01:12.1]} 22... Bxb4 {[%clk 0:01:40.7]} 23. Rb1 {[%clk
0:01:10.9]} 23... c5 {[%clk 0:01:38.6]} 24. c3 {[%clk 0:01:06.1]} 24... Ba3
{[%clk 0:01:37]} 25. Rb7+ {[%clk 0:01:03.7]} 25... Ke6 {[%clk 0:01:35.6]} 26.
Rxa7 {[%clk 0:00:59.7]} 26... Bb2 {[%clk 0:01:32.9]} 27. Kc2 {[%clk 0:00:46.7]}
27... Kf5 {[%clk 0:01:27.8]} 28. Rxf7+ {[%clk 0:00:46]} 28... Ke6 {[%clk
0:01:28]} 29. Rxh7 {[%clk 0:00:32.5]} 29... Kf5 {[%clk 0:01:28.1]} 30. Kxb2
{[%clk 0:00:29.3]} 30... Kxf4 {[%clk 0:01:27.7]} 31. dxc5 {[%clk 0:00:29.3]}
31... Rc8 {[%clk 0:01:24.2]} 32. Rf7+ {[%clk 0:00:27]} 32... Ke3 {[%clk
0:01:21.6]} 33. Kb3 {[%clk 0:00:23]} 33... Rxc5 {[%clk 0:01:20.6]} 34. Kb4
{[%clk 0:00:20.2]} 34... Rh5 {[%clk 0:01:20.4]} 35. a4 {[%clk 0:00:18.5]} 35...
Rxh2 {[%clk 0:01:20.9]} 36. a5 {[%clk 0:00:18.7]} 36... Rb2+ {[%clk 0:01:19.3]}
37. Kc5 {[%clk 0:00:18.5]} 37... Kd3 {[%clk 0:01:17.6]} 38. a6 {[%clk
0:00:18.3]} 38... Ra2 {[%clk 0:01:16.3]} 39. a7 {[%clk 0:00:17.4]} 39... Kxc3
{[%clk 0:01:16.5]} 40. Kb6 {[%clk 0:00:17.7]} 40... Kc4 {[%clk 0:01:12.3]} 41.
Rf8 {[%clk 0:00:15.7]} 1-0

[Event "Early-Titled-Tuesday-Blitz-November-28-2023"]
[Site "Chess.com"]
[Date "2023.11.28"]
[Round "2"]
[White "kubal123"]
[Black "DuleMudule"]
[Result "1-0"]
[WhiteElo "2459"]
[BlackElo "2807"]
[TimeControl "180+1"]
[EndTime "8:16:55 PST"]
[Termination "kubal123 won by resignation"]

1. e4 {[%clk 0:03:00.9]} 1... c6 {[%clk 0:03:00.1]} 2. d4 {[%clk 0:02:59.7]}
2... d5 {[%clk 0:03:01]} 3. e5 {[%clk 0:03:00]} 3... Bf5 {[%clk 0:03:00.8]} 4.
Nf3 {[%clk 0:03:00.6]} 4... e6 {[%clk 0:03:01.2]} 5. Be2 {[%clk 0:02:59.9]} 5...
h6 {[%clk 0:03:00.9]} 6. O-O {[%clk 0:02:59.5]} 6... Ne7 {[%clk 0:03:01.5]} 7.
Ne1 {[%clk 0:02:59.8]} 7... Bg6 {[%clk 0:03:00.6]} 8. Nd2 {[%clk 0:02:57.4]}
8... Nf5 {[%clk 0:03:00.3]} 9. Nb3 {[%clk 0:02:57.4]} 9... Nd7 {[%clk
0:02:57.2]} 10. Nd3 {[%clk 0:02:44]} 10... Be7 {[%clk 0:02:52.6]} 11. a4 {[%clk
0:02:43.8]} 11... O-O {[%clk 0:02:52.1]} 12. Bd2 {[%clk 0:02:39.4]} 12... Rc8
{[%clk 0:02:51.3]} 13. a5 {[%clk 0:02:37.1]} 13... c5 {[%clk 0:02:43.9]} 14.
dxc5 {[%clk 0:02:36.5]} 14... Qc7 {[%clk 0:02:43.3]} 15. a6 {[%clk 0:02:25.2]}
15... bxa6 {[%clk 0:02:38.4]} 16. Rxa6 {[%clk 0:02:00]} 16... Nxc5 {[%clk
0:02:37.4]} 17. Ba5 {[%clk 0:01:34.5]} 17... Qb8 {[%clk 0:02:32]} 18. Nbxc5
{[%clk 0:01:27.2]} 18... Bxc5 {[%clk 0:02:32.9]} 19. c3 {[%clk 0:01:26.7]} 19...
Bb6 {[%clk 0:02:26.6]} 20. Bxb6 {[%clk 0:01:25.1]} 20... axb6 {[%clk 0:02:27.5]}
21. Qb3 {[%clk 0:01:22.8]} 21... d4 {[%clk 0:02:21.8]} 22. c4 {[%clk 0:01:21.7]}
22... Qc7 {[%clk 0:02:18.5]} 23. Rc1 {[%clk 0:01:18.9]} 23... Ne7 {[%clk
0:02:18.4]} 24. Qxb6 {[%clk 0:01:16.5]} 24... Bxd3 {[%clk 0:02:06.4]} 25. Qxc7
{[%clk 0:01:14.9]} 25... Rxc7 {[%clk 0:02:07.3]} 26. Bxd3 {[%clk 0:01:15.5]}
26... Nc6 {[%clk 0:02:07.8]} 27. f4 {[%clk 0:01:12.2]} 27... Rb8 {[%clk
0:02:07.5]} 28. Be4 {[%clk 0:01:06.4]} 28... Nb4 {[%clk 0:02:01.6]} 29. Ra4
{[%clk 0:01:06.8]} 29... g6 {[%clk 0:01:59.2]} 30. c5 {[%clk 0:01:03.2]} 30...
d3 {[%clk 0:01:56.9]} 31. Kf2 {[%clk 0:00:56.2]} 31... d2 {[%clk 0:01:55.6]} 32.
Rd1 {[%clk 0:00:56.4]} 32... Rxc5 {[%clk 0:01:52.3]} 33. Rxd2 {[%clk 0:00:56.6]}
33... Rc4 {[%clk 0:01:28.2]} 34. Bf3 {[%clk 0:00:51.1]} 34... Rxf4 {[%clk
0:01:25.5]} 35. Rd7 {[%clk 0:00:49.2]} 35... Nc6 {[%clk 0:01:21.6]} 36. Rxf4
{[%clk 0:00:48.5]} 36... Nxe5 {[%clk 0:01:21.3]} 37. Rd2 {[%clk 0:00:45.1]}
37... g5 {[%clk 0:01:20.3]} 38. Ra4 {[%clk 0:00:44.6]} 38... Kg7 {[%clk
0:01:20]} 39. Be2 {[%clk 0:00:42.7]} 39... f5 {[%clk 0:01:18.6]} 40. b4 {[%clk
0:00:42.4]} 40... Kf6 {[%clk 0:01:18.5]} 41. b5 {[%clk 0:00:42.8]} 41... f4
{[%clk 0:01:12.9]} 42. Rb4 {[%clk 0:00:43.1]} 42... Rb6 {[%clk 0:01:12.3]} 43.
Ra2 {[%clk 0:00:41.7]} 43... Nd7 {[%clk 0:01:09.3]} 44. Ra6 {[%clk 0:00:41.5]}
44... Rb8 {[%clk 0:01:09.6]} 45. b6 {[%clk 0:00:41.5]} 45... Nc5 {[%clk
0:01:09.8]} 46. Ra7 {[%clk 0:00:39.6]} 46... Ke5 {[%clk 0:01:09.6]} 47. b7
{[%clk 0:00:39.5]} 47... Ne4+ {[%clk 0:01:09.6]} 48. Rxe4+ {[%clk 0:00:37.1]}
48... Kxe4 {[%clk 0:01:09.6]} 49. Bf3+ {[%clk 0:00:37.8]} 49... Ke5 {[%clk
0:01:09]} 50. Ra8 {[%clk 0:00:38.7]} 1-0

[Event "Early-Titled-Tuesday-Blitz-November-28-2023"]
[Site "Chess.com"]
[Date "2023.11.28"]
[Round "2"]
[White "zajka-molotok"]
[Black "Bodhanas"]
[Result "1-0"]
[WhiteElo "2493"]
[BlackElo "2215"]
[TimeControl "180+1"]
[EndTime "8:16:55 PST"]
[Termination "zajka-molotok won by resignation"]

1. e4 {[%clk 0:03:00.9]} 1... e6 {[%clk 0:02:58.5]} 2. d4 {[%clk 0:02:59.8]}
2... d5 {[%clk 0:02:58.3]} 3. exd5 {[%clk 0:03:00.2]} 3... exd5 {[%clk
0:02:58.6]} 4. Nf3 {[%clk 0:02:54.2]} 4... Nf6 {[%clk 0:02:56.4]} 5. Bd3 {[%clk
0:02:53.4]} 5... Bd6 {[%clk 0:02:55.8]} 6. Qe2+ {[%clk 0:02:52.9]} 6... Qe7
{[%clk 0:02:55]} 7. Qxe7+ {[%clk 0:02:52.4]} 7... Bxe7 {[%clk 0:02:54.6]} 8. Bf4
{[%clk 0:02:50.5]} 8... c6 {[%clk 0:02:51.6]} 9. O-O {[%clk 0:02:49.8]} 9... O-O
{[%clk 0:02:48.5]} 10. Re1 {[%clk 0:02:50]} 10... Re8 {[%clk 0:02:42.4]} 11. a4
{[%clk 0:02:47.5]} 11... h6 {[%clk 0:02:38.9]} 12. h3 {[%clk 0:02:35.8]} 12...
Be6 {[%clk 0:02:36]} 13. c3 {[%clk 0:02:31.9]} 13... Nbd7 {[%clk 0:02:35.2]} 14.
a5 {[%clk 0:02:31.6]} 14... a6 {[%clk 0:02:33.9]} 15. b4 {[%clk 0:02:30]} 15...
Nf8 {[%clk 0:02:28.7]} 16. Nbd2 {[%clk 0:02:28.7]} 16... Rad8 {[%clk 0:02:27.9]}
17. Nb3 {[%clk 0:02:27.3]} 17... Bd6 {[%clk 0:02:24.9]} 18. Bxd6 {[%clk
0:02:23.3]} 18... Rxd6 {[%clk 0:02:24.4]} 19. Nc5 {[%clk 0:02:23.8]} 19... Re7
{[%clk 0:02:19.5]} 20. Ne5 {[%clk 0:02:21.7]} 20... Rd8 {[%clk 0:02:13.5]} 21.
f4 {[%clk 0:02:18.8]} 21... Rde8 {[%clk 0:02:12.3]} 22. Kf2 {[%clk 0:02:09.3]}
22... Bc8 {[%clk 0:02:03.3]} 23. g4 {[%clk 0:02:05.5]} 23... N8d7 {[%clk
0:02:02.4]} 24. Re3 {[%clk 0:01:56.6]} 24... Nxc5 {[%clk 0:01:59.7]} 25. bxc5
{[%clk 0:01:45.6]} 25... Ne4+ {[%clk 0:01:57.7]} 26. Bxe4 {[%clk 0:01:44.2]}
26... dxe4 {[%clk 0:01:57]} 27. Nc4 {[%clk 0:01:39.5]} 27... f5 {[%clk
0:01:54.1]} 28. Nd6 {[%clk 0:01:38.6]} 28... Rf8 {[%clk 0:01:53.7]} 29. Kg3
{[%clk 0:01:36]} 29... g5 {[%clk 0:01:51.3]} 30. Rf1 {[%clk 0:01:33.3]} 30...
fxg4 {[%clk 0:01:44.3]} 31. hxg4 {[%clk 0:01:30]} 31... Kg7 {[%clk 0:01:37]} 32.
f5 {[%clk 0:01:27.3]} 32... h5 {[%clk 0:01:29.5]} 33. Rxe4 {[%clk 0:01:21.8]}
33... Rxe4 {[%clk 0:01:27.4]} 34. Nxe4 {[%clk 0:01:22.7]} 34... Kh6 {[%clk
0:01:25.8]} 35. Nd6 {[%clk 0:01:17.9]} 35... h4+ {[%clk 0:01:20.3]} 36. Kh3
{[%clk 0:01:15]} 36... Kg7 {[%clk 0:01:19.4]} 37. Re1 {[%clk 0:01:14.3]} 37...
Kf6 {[%clk 0:01:09.8]} 38. Re5 {[%clk 0:01:13.1]} 38... Bd7 {[%clk 0:01:06]} 39.
Ne4+ {[%clk 0:01:11.6]} 39... Kg7 {[%clk 0:01:05.7]} 40. Nxg5 {[%clk 0:01:11.7]}
40... Re8 {[%clk 0:01:05.7]} 41. Rxe8 {[%clk 0:01:09.5]} 41... Bxe8 {[%clk
0:01:05.9]} 42. Kxh4 {[%clk 0:01:10]} 42... Kf6 {[%clk 0:01:03.5]} 43. Ne4+
{[%clk 0:01:09.7]} 43... Kg7 {[%clk 0:01:03.5]} 44. g5 {[%clk 0:01:10.2]} 44...
Bf7 {[%clk 0:01:03.3]} 45. g6 {[%clk 0:01:08.4]} 45... Bxg6 {[%clk 0:00:52.7]}
46. fxg6 {[%clk 0:01:07.8]} 46... Kxg6 {[%clk 0:00:53.1]} 47. Kg4 {[%clk
0:01:08.3]} 47... Kf7 {[%clk 0:00:52.8]} 48. Kf5 {[%clk 0:01:08.3]} 48... Ke7
{[%clk 0:00:53.4]} 49. Ke5 {[%clk 0:01:08.4]} 49... Kd7 {[%clk 0:00:53.9]} 50.
Nd6 {[%clk 0:01:07.7]} 50... Kc7 {[%clk 0:00:54.2]} 51. Ke6 {[%clk 0:01:08.1]}
51... Kb8 {[%clk 0:00:54.5]} 52. Kd7 {[%clk 0:01:08.2]} 52... Ka7 {[%clk
0:00:54.5]} 53. Kc7 {[%clk 0:01:07.9]} 53... Ka8 {[%clk 0:00:54.7]} 54. Nxb7
{[%clk 0:01:07.3]} 54... Ka7 {[%clk 0:00:55.1]} 55. Kxc6 {[%clk 0:01:06.4]}
55... Kb8 {[%clk 0:00:55.4]} 56. d5 {[%clk 0:01:06.9]} 56... Kc8 {[%clk
0:00:54.7]} 57. d6 {[%clk 0:01:06.8]} 57... Kb8 {[%clk 0:00:55.1]} 58. d7 {[%clk
0:01:06.6]} 58... Ka7 {[%clk 0:00:55.8]} 59. Nd6 {[%clk 0:01:03.9]} 1-0

[Event "Early-Titled-Tuesday-Blitz-November-28-2023"]
[Site "Chess.com"]
[Date "2023.11.28"]
[Round "2"]
[White "noblerone"]
[Black "sofaceindisguise"]
[Result "0-1"]
[WhiteElo "2542"]
[BlackElo "2805"]
[TimeControl "180+1"]
[EndTime "8:16:58 PST"]
[Termination "sofaceindisguise won by resignation"]

1. d4 {[%clk 0:02:59.7]} 1... Nf6 {[%clk 0:02:58.7]} 2. Nf3 {[%clk 0:02:58.4]}
2... e6 {[%clk 0:02:59]} 3. Bg5 {[%clk 0:02:52.1]} 3... h6 {[%clk 0:02:57]} 4.
Bh4 {[%clk 0:02:50.9]} 4... Be7 {[%clk 0:02:53.4]} 5. Nbd2 {[%clk 0:02:50.1]}
5... d5 {[%clk 0:02:53.3]} 6. e3 {[%clk 0:02:50.3]} 6... O-O {[%clk 0:02:52.6]}
7. Bd3 {[%clk 0:02:50.2]} 7... Nbd7 {[%clk 0:02:50.8]} 8. c3 {[%clk 0:02:47.7]}
8... c5 {[%clk 0:02:50.9]} 9. O-O {[%clk 0:02:45]} 9... b6 {[%clk 0:02:50.8]}
10. Ne5 {[%clk 0:02:44.9]} 10... Bb7 {[%clk 0:02:49]} 11. f4 {[%clk 0:02:44.9]}
11... Ne4 {[%clk 0:02:42.1]} 12. Bxe7 {[%clk 0:02:44.6]} 12... Qxe7 {[%clk
0:02:41.8]} 13. Nxd7 {[%clk 0:02:42.9]} 13... Qxd7 {[%clk 0:02:40.9]} 14. Nf3
{[%clk 0:02:38.2]} 14... f6 {[%clk 0:02:26.9]} 15. Nd2 {[%clk 0:02:11.3]} 15...
Nd6 {[%clk 0:02:20.9]} 16. Qg4 {[%clk 0:02:07.4]} 16... Rae8 {[%clk 0:01:47.6]}
17. Rae1 {[%clk 0:01:59]} 17... Ne4 {[%clk 0:01:44]} 18. Nxe4 {[%clk 0:01:33.1]}
18... dxe4 {[%clk 0:01:43.4]} 19. Bc4 {[%clk 0:01:33.1]} 19... cxd4 {[%clk
0:01:42]} 20. cxd4 {[%clk 0:01:30.2]} 20... Bd5 {[%clk 0:01:42]} 21. b3 {[%clk
0:01:25.3]} 21... Rc8 {[%clk 0:01:38.3]} 22. Rc1 {[%clk 0:01:19.6]} 22... f5
{[%clk 0:01:36.9]} 23. Qe2 {[%clk 0:01:17.9]} 23... Kh7 {[%clk 0:01:34]} 24. Ba6
{[%clk 0:01:09.4]} 24... Rc7 {[%clk 0:01:32.7]} 25. Rxc7 {[%clk 0:01:03.6]}
25... Qxc7 {[%clk 0:01:31.9]} 26. Qd2 {[%clk 0:01:02.6]} 26... g5 {[%clk
0:01:27.2]} 27. g3 {[%clk 0:00:47.5]} 27... gxf4 {[%clk 0:01:27.4]} 28. Rxf4
{[%clk 0:00:46.1]} 28... Rg8 {[%clk 0:01:16.7]} 29. Rf1 {[%clk 0:00:27.7]} 29...
Rg7 {[%clk 0:01:15.2]} 30. Rc1 {[%clk 0:00:22]} 30... Qe7 {[%clk 0:01:15.7]} 31.
Qf2 {[%clk 0:00:20.9]} 31... Qd6 {[%clk 0:01:10.4]} 32. Bf1 {[%clk 0:00:18.6]}
32... h5 {[%clk 0:01:05.4]} 33. Bg2 {[%clk 0:00:14.8]} 33... h4 {[%clk
0:01:02.8]} 34. gxh4 {[%clk 0:00:14.5]} 34... f4 {[%clk 0:01:03.1]} 35. Rf1
{[%clk 0:00:11.8]} 35... f3 {[%clk 0:01:03.1]} 0-1

[Event "Early-Titled-Tuesday-Blitz-November-28-2023"]
[Site "Chess.com"]
[Date "2023.11.28"]
[Round "2"]
[White "Shivananda1964"]
[Black "Bauman_Guy"]
[Result "0-1"]
[WhiteElo "2402"]
[BlackElo "2884"]
[TimeControl "180+1"]
[EndTime "8:17:00 PST"]
[Termination "Bauman_Guy won on time"]

1. e4 {[%clk 0:03:00.9]} 1... c5 {[%clk 0:02:56.5]} 2. Nf3 {[%clk 0:02:57.7]}
2... d6 {[%clk 0:02:56.3]} 3. Bc4 {[%clk 0:02:56.9]} 3... Nf6 {[%clk 0:02:55.8]}
4. e5 {[%clk 0:02:56.9]} 4... dxe5 {[%clk 0:02:55.6]} 5. Nxe5 {[%clk 0:02:56.8]}
5... e6 {[%clk 0:02:55]} 6. Qe2 {[%clk 0:02:56.6]} 6... Qc7 {[%clk 0:02:54]} 7.
d3 {[%clk 0:02:52.2]} 7... Bd6 {[%clk 0:02:53.3]} 8. f4 {[%clk 0:02:52.2]} 8...
a6 {[%clk 0:02:52.7]} 9. a4 {[%clk 0:02:51.8]} 9... Nc6 {[%clk 0:02:52.6]} 10.
Nxc6 {[%clk 0:02:49.7]} 10... Qxc6 {[%clk 0:02:53.5]} 11. O-O {[%clk 0:02:20.3]}
11... O-O {[%clk 0:02:52.6]} 12. Nc3 {[%clk 0:02:18.9]} 12... b6 {[%clk
0:02:51.6]} 13. Ne4 {[%clk 0:02:12.1]} 13... Be7 {[%clk 0:02:48.4]} 14. Bd2
{[%clk 0:02:05.2]} 14... Bb7 {[%clk 0:02:44.6]} 15. Nxf6+ {[%clk 0:01:38.4]}
15... Bxf6 {[%clk 0:02:45.5]} 16. Bc3 {[%clk 0:01:38.2]} 16... Bxc3 {[%clk
0:02:36.4]} 17. bxc3 {[%clk 0:01:35.7]} 17... b5 {[%clk 0:02:36.9]} 18. Ba2
{[%clk 0:01:24.8]} 18... Rfe8 {[%clk 0:02:30.2]} 19. Rf2 {[%clk 0:01:21.6]}
19... Rac8 {[%clk 0:02:27.4]} 20. axb5 {[%clk 0:01:19.8]} 20... axb5 {[%clk
0:02:28.3]} 21. c4 {[%clk 0:01:03.7]} 21... b4 {[%clk 0:02:24.2]} 22. Bb3 {[%clk
0:01:03.4]} 22... Ra8 {[%clk 0:02:23.4]} 23. Rff1 {[%clk 0:01:00.7]} 23... g6
{[%clk 0:02:22]} 24. Rae1 {[%clk 0:00:51.1]} 24... Red8 {[%clk 0:02:18.4]} 25.
Rf3 {[%clk 0:00:41.8]} 25... Rd4 {[%clk 0:02:16.9]} 26. Qe5 {[%clk 0:00:37.1]}
26... Qd6 {[%clk 0:01:56.4]} 27. Qxd6 {[%clk 0:00:30.7]} 27... Rxd6 {[%clk
0:01:57.3]} 28. Rfe3 {[%clk 0:00:28.9]} 28... Rd4 {[%clk 0:01:57]} 29. g3 {[%clk
0:00:27.3]} 29... h5 {[%clk 0:01:55.9]} 30. Kf2 {[%clk 0:00:27.1]} 30... h4
{[%clk 0:01:55.4]} 31. Re5 {[%clk 0:00:23.7]} 31... Rc8 {[%clk 0:01:52.7]} 32.
Ra1 {[%clk 0:00:23.6]} 32... Rd7 {[%clk 0:01:42.7]} 33. Ra7 {[%clk 0:00:21.1]}
33... Rdc7 {[%clk 0:01:41.4]} 34. Ba4 {[%clk 0:00:19.9]} 34... Kg7 {[%clk
0:01:41.3]} 35. Bb5 {[%clk 0:00:19]} 35... Kf6 {[%clk 0:01:41]} 36. g4 {[%clk
0:00:17.8]} 36... Ba8 {[%clk 0:01:36.1]} 37. g5+ {[%clk 0:00:17.7]} 37... Ke7
{[%clk 0:01:35.6]} 38. Ra5 {[%clk 0:00:13.4]} 38... Bb7 {[%clk 0:01:32.9]} 39.
Ke3 {[%clk 0:00:08.1]} 39... Kd6 {[%clk 0:01:31.9]} 40. Ba6 {[%clk 0:00:05.8]}
40... Ra8 {[%clk 0:01:31.3]} 41. Rb5 {[%clk 0:00:02]} 41... Bxa6 {[%clk
0:01:30.3]} 42. Rb6+ {[%clk 0:00:02.4]} 42... Rc6 {[%clk 0:01:30]} 0-1

[Event "Early-Titled-Tuesday-Blitz-November-28-2023"]
[Site "Chess.com"]
[Date "2023.11.28"]
[Round "2"]
[White "ElDivis"]
[Black "parintele_chess"]
[Result "1-0"]
[WhiteElo "2463"]
[BlackElo "2189"]
[TimeControl "180+1"]
[EndTime "8:17:00 PST"]
[Termination "ElDivis won on time"]

1. e4 {[%clk 0:03:00.9]} 1... e5 {[%clk 0:02:56.1]} 2. Nf3 {[%clk 0:03:01.3]}
2... Nc6 {[%clk 0:02:56]} 3. Bc4 {[%clk 0:03:01.7]} 3... Nf6 {[%clk 0:02:55.4]}
4. d3 {[%clk 0:02:59.9]} 4... Bc5 {[%clk 0:02:53.8]} 5. O-O {[%clk 0:02:59.8]}
5... h6 {[%clk 0:02:53.1]} 6. Nc3 {[%clk 0:02:58.8]} 6... d6 {[%clk 0:02:52.5]}
7. Nd5 {[%clk 0:02:53.9]} 7... O-O {[%clk 0:02:50]} 8. c3 {[%clk 0:02:52.2]}
8... Bg4 {[%clk 0:02:45.3]} 9. h3 {[%clk 0:02:50.2]} 9... Bh5 {[%clk 0:02:44.7]}
10. g4 {[%clk 0:02:45.1]} 10... Bg6 {[%clk 0:02:41.6]} 11. Nh4 {[%clk
0:02:37.2]} 11... Nxd5 {[%clk 0:02:30.3]} 12. Nxg6 {[%clk 0:02:36.3]} 12... fxg6
{[%clk 0:02:24.1]} 13. b4 {[%clk 0:02:32.3]} 13... Bb6 {[%clk 0:02:06]} 14. a4
{[%clk 0:02:31.8]} 14... Qh4 {[%clk 0:01:57.1]} 15. Bxd5+ {[%clk 0:02:26.4]}
15... Kh7 {[%clk 0:01:55.4]} 16. Be3 {[%clk 0:02:11.1]} 16... Bxe3 {[%clk
0:01:39]} 17. fxe3 {[%clk 0:02:09.6]} 17... Qg3+ {[%clk 0:01:36.9]} 18. Kh1
{[%clk 0:02:08.1]} 18... Qxh3+ {[%clk 0:01:35.1]} 19. Kg1 {[%clk 0:02:08.4]}
19... Qxe3+ {[%clk 0:01:16.3]} 20. Kg2 {[%clk 0:02:02.2]} 20... Rxf1 {[%clk
0:01:15.5]} 21. Qxf1 {[%clk 0:02:02.4]} 21... Qd2+ {[%clk 0:01:15.1]} 22. Kg3
{[%clk 0:01:48.8]} 22... Qxc3 {[%clk 0:01:05.3]} 23. g5 {[%clk 0:01:48.9]} 23...
h5 {[%clk 0:00:58]} 24. Bf7 {[%clk 0:01:45]} 24... Ne7 {[%clk 0:00:41]} 25. Rc1
{[%clk 0:01:42.1]} 25... Qd2 {[%clk 0:00:36.4]} 26. Rxc7 {[%clk 0:01:41.6]}
26... Qxg5+ {[%clk 0:00:35]} 27. Kh2 {[%clk 0:01:36.2]} 27... Rf8 {[%clk
0:00:32.4]} 28. Rxb7 {[%clk 0:01:28.7]} 28... Qh4+ {[%clk 0:00:24.6]} 29. Qh3
{[%clk 0:01:29]} 29... Qf2+ {[%clk 0:00:07.8]} 30. Qg2 {[%clk 0:01:28.7]} 30...
Rxf7 {[%clk 0:00:05.3]} 31. Qxf2 {[%clk 0:01:24.5]} 31... Rxf2+ {[%clk 0:00:06]}
32. Kg3 {[%clk 0:01:25.4]} 32... Rf7 {[%clk 0:00:05.7]} 33. Rxa7 {[%clk
0:01:25.9]} 33... g5 {[%clk 0:00:05.8]} 34. Kg2 {[%clk 0:01:25.6]} 34... Kg6
{[%clk 0:00:05.2]} 35. b5 {[%clk 0:01:26.2]} 35... d5 {[%clk 0:00:03.8]} 36. a5
{[%clk 0:01:22.2]} 36... dxe4 {[%clk 0:00:03.2]} 37. dxe4 {[%clk 0:01:23.1]}
37... Nc8 {[%clk 0:00:01.7]} 38. Ra8 {[%clk 0:01:19.1]} 1-0

[Event "Early-Titled-Tuesday-Blitz-November-28-2023"]
[Site "Chess.com"]
[Date "2023.11.28"]
[Round "2"]
[White "AccioChess"]
[Black "KNVB"]
[Result "1-0"]
[WhiteElo "2468"]
[BlackElo "2733"]
[TimeControl "180+1"]
[EndTime "8:17:08 PST"]
[Termination "AccioChess won on time"]

1. d4 {[%clk 0:02:58.8]} 1... e5 {[%clk 0:02:58.6]} 2. dxe5 {[%clk 0:02:58.2]}
2... Nc6 {[%clk 0:02:58.9]} 3. Nf3 {[%clk 0:02:57.9]} 3... Qe7 {[%clk
0:02:59.2]} 4. Bf4 {[%clk 0:02:57.6]} 4... Qb4+ {[%clk 0:02:59.1]} 5. Bd2 {[%clk
0:02:50.8]} 5... Qxb2 {[%clk 0:02:59.2]} 6. Nc3 {[%clk 0:02:48.4]} 6... Bb4
{[%clk 0:02:59.6]} 7. Rb1 {[%clk 0:02:39]} 7... Qxc3 {[%clk 0:02:59.9]} 8. Bxc3
{[%clk 0:02:07.1]} 8... Bxc3+ {[%clk 0:03:00.8]} 9. Nd2 {[%clk 0:02:06.5]} 9...
Nxe5 {[%clk 0:03:01.3]} 10. e3 {[%clk 0:02:05.1]} 10... Nf6 {[%clk 0:03:00.1]}
11. Bd3 {[%clk 0:02:03.7]} 11... O-O {[%clk 0:03:00.6]} 12. O-O {[%clk
0:02:02.8]} 12... d5 {[%clk 0:03:01.1]} 13. Rb3 {[%clk 0:01:56.6]} 13... Ba5
{[%clk 0:02:59.7]} 14. h3 {[%clk 0:01:56.7]} 14... Rd8 {[%clk 0:02:50.1]} 15. f4
{[%clk 0:01:54.1]} 15... Nc4 {[%clk 0:02:38.1]} 16. Nf3 {[%clk 0:01:23.3]} 16...
Nxe3 {[%clk 0:01:10.5]} 17. Bxh7+ {[%clk 0:01:21.6]} 17... Nxh7 {[%clk
0:01:11.4]} 18. Rxe3 {[%clk 0:01:21.2]} 18... Bb6 {[%clk 0:01:12.2]} 19. Nd4
{[%clk 0:01:20.5]} 19... Nf6 {[%clk 0:00:51.6]} 20. Kh2 {[%clk 0:01:16.1]} 20...
Bd7 {[%clk 0:00:48.2]} 21. Re5 {[%clk 0:01:09.5]} 21... Ne4 {[%clk 0:00:31.9]}
22. Nf5 {[%clk 0:00:52]} 22... Bxf5 {[%clk 0:00:24]} 23. Rxf5 {[%clk 0:00:51.1]}
23... c6 {[%clk 0:00:24.7]} 24. Re5 {[%clk 0:00:47.5]} 24... Re8 {[%clk
0:00:02.9]} 25. Qg4 {[%clk 0:00:42.2]} 25... Bc7 {[%clk 0:00:02]} 26. Rxe8+
{[%clk 0:00:41.8]} 26... Rxe8 {[%clk 0:00:02.9]} 27. Qd7 {[%clk 0:00:41.4]} 1-0